fUST/lending_fUST_20240304
["ID","MTS","AMOUNT","RATE_DAILY","PERIOD"]
[316536197,1709532632935,-274.0783514,0.00024869,2]
[316536199,1709532632944,-256.68347085,0.0002487,2]
[316536200,1709532632961,-243.31652915,0.0002487,2]
[316536202,1709532632970,-299.17257907,0.0002487,2]
[316536205,1709532632982,-200.82742093,0.0002487,2]
[316536207,1709532632991,-500.0,0.0002487,2]
[316536209,1709532633000,-20.39150996,0.0002487,2]
[316536324,1709532638709,-479.60849004,0.0002487,2]
[316536325,1709532638720,-277.33,0.0002487,2]
[316536326,1709532638730,-156.18,0.0002487,2]
[316536327,1709532638740,-156.18,0.0002487,2]
[316536328,1709532638751,-156.18,0.0002487,2]
[316536329,1709532638760,-156.18,0.0002487,2]
[316536330,1709532638771,-156.18,0.0002487,2]
[316536331,1709532638781,-156.18,0.0002487,2]
[316536332,1709532638791,-156.18,0.0002487,2]
[316536333,1709532638800,-156.18,0.0002487,2]
[316536334,1709532638810,-156.18,0.0002487,2]
[316536335,1709532638820,-156.18,0.0002487,2]
[316536336,1709532638831,-500.0,0.0002487,2]
[316536337,1709532638841,-500.0,0.0002487,2]
[316536338,1709532638851,-432.84090838,0.0002487,2]
[316536339,1709532638862,-500.0,0.0002487,2]
[316536340,1709532638872,-500.0,0.0002487,2]
[316536341,1709532638882,-419.83328513,0.0002487,2]
[316536399,1709532643525,-80.16671487,0.0002487,2]
[316536401,1709532643534,-500.0,0.0002487,2]
[316536404,1709532643543,-52.42975612,0.0002487,2]
[316536455,1709532646624,-120.10289635,0.0002487,2]
[316536456,1709532646633,-354.37044008,0.0002487,2]
[316536457,1709532646642,-500.0,0.0002487,2]
[316536458,1709532646651,-500.0,0.0002487,2]
[316536459,1709532646662,-500.0,0.0002487,2]
[316536460,1709532646671,-500.0,0.0002487,2]
[316536461,1709532646684,-500.0,0.0002487,2]
[316536462,1709532646694,-500.0,0.0002487,2]
[316536463,1709532646703,-500.0,0.0002487,2]
[316536464,1709532646713,-500.0,0.0002487,2]
[316536465,1709532646721,-500.0,0.0002487,2]
[316536467,1709532646732,-500.0,0.0002487,2]
[316536469,1709532646741,-500.0,0.0002487,2]
[316536470,1709532646750,-189.16329114,0.0002487,2]
[316536471,1709532646759,-349.14715576,0.0002487,2]
[316536472,1709532646769,-528.91520159,0.00024871,3]
[316536473,1709532646778,-5545.36390242,0.00024871,30]
[316542881,1709533636118,-570.32315621,0.00022647,2]
[316542882,1709533636138,-150.0,0.0002277,2]
[316542883,1709533636159,-339.43425306,0.00023018,5]
[316542884,1709533636178,-177.240497,0.00023027,2]
[316542885,1709533636198,-716.83584373,0.000235,2]
[316543156,1709533745449,-160.47575149,0.000214,2]
[316543444,1709533838752,-43.39608972,0.000214,2]
[316543446,1709533838761,-210.67991028,0.000235,2]
[316543750,1709533846759,-625.61121553,0.000235,2]
[316543751,1709533846768,-838.63427004,0.00023838,2]
[316544364,1709534663291,10000.0,0.0002001,10]
[316544370,1709534672743,10000.0,0.0002001,10]
[316544372,1709534689809,10000.0,0.0002001,10]
[316544373,1709534699944,10000.0,0.0002001,10]
[316544385,1709534830113,-274.17258195,0.00021737,2]
[316544386,1709534830133,-278.90201516,0.00021737,2]
[316546914,1709534903361,332.48422887,0.000189,2]
[316548307,1709534947145,-262.46890275,0.00021737,2]
[316548377,1709535034475,-991.57511401,0.00023231,30]
[316548378,1709535034545,-3740.67120139,0.00023231,30]
[316548439,1709535038009,-274.17258195,0.0002323,2]
[316548441,1709535038019,-3193.82741805,0.00023231,30]
[316548496,1709535040967,-4895.76456655,0.00023231,30]
[316548497,1709535040977,-623.74333508,0.00023477,2]
[316548498,1709535040987,-249.75328,0.00023479,2]
[316548499,1709535040996,-15869.94606106,0.00023499,2]
[316548549,1709535042912,-689.35222227,0.00023499,2]
[316548557,1709535042984,-1342.8,0.00023499,2]
[316548639,1709535046089,-623.51457939,0.00023499,2]
[316548964,1709536042116,-321.57741087,0.00020388,2]
[316548965,1709536042138,-253.35909113,0.00020389,2]
[316549033,1709536108872,330.85339604,0.000189,2]
[316549057,1709536124135,205.02276,0.00019832,2]
[316549071,1709536148135,-274.17258195,0.00020384,2]
[316549072,1709536148155,-160.02841284,0.00020385,2]
[316549073,1709536148175,-166.63938608,0.00020389,2]
[316549074,1709536148195,-173.0041987,0.00020556,2]
[316549075,1709536148215,-8747.3815499,0.00020564,2]
[316549076,1709536148236,-200.35742495,0.00021384,2]
[316549077,1709536148256,-18678.42208434,0.00021394,2]
[316549209,1709536234926,-34.36228404,0.00021394,2]
[316549211,1709536234936,-686.85664685,0.00022647,2]
[316549213,1709536234949,-861.10363515,0.00022647,2]
[316549218,1709536234982,-2204.14200708,0.00022647,2]
[316549220,1709536234991,-171.09694687,0.00022647,2]
[316549222,1709536235001,-8163.898,0.00023247,30]
[316549223,1709536235011,-274.17258195,0.00023837,2]
[316549226,1709536235020,-261.54615543,0.00023838,2]
[316549228,1709536235030,-330.85339604,0.000239,2]
[316549230,1709536235041,-1396.0,0.00024,2]
[316549232,1709536235051,-154.3073726,0.00024055,2]
[316549233,1709536235060,-154.0233964,0.00024055,2]
[316549235,1709536235070,-300.0,0.000245,11]
[316549237,1709536235079,-581.0,0.000245,2]
[316549239,1709536235089,-150.0,0.000246,2]
[316549241,1709536235099,-170.36932604,0.00024621,2]
[316549243,1709536235109,-500.0,0.00024646,2]
[316549245,1709536235119,-1000.0,0.00024651,2]
[316549248,1709536235128,-500.0,0.00024657,2]
[316549249,1709536235139,-501.22965131,0.00024657,2]
[316549251,1709536235149,-500.94727417,0.00024657,2]
[316549253,1709536235159,-500.0,0.00024657,2]
[316549255,1709536235169,-500.0,0.00024657,2]
[316549257,1709536235179,-500.0,0.00024657,2]
[316549259,1709536235189,-500.0,0.00024657,2]
[316549261,1709536235202,-500.0,0.00024657,2]
[316549264,1709536235213,-616.88441953,0.00024657,2]
[316549266,1709536235224,-500.77842844,0.00024657,2]
[316549268,1709536235234,-500.0,0.00024657,2]
[316549269,1709536235244,-151.0,0.00024657,2]
[316549272,1709536235255,-151.0,0.00024657,2]
[316549273,1709536235266,-480.33059787,0.00024657,2]
[316549275,1709536235277,-500.0,0.00024657,2]
[316549277,1709536235288,-495.0863917,0.00024657,2]
[316549280,1709536235299,-500.0,0.00024657,2]
[316549282,1709536235309,-501.80021407,0.00024657,2]
[316549283,1709536235320,-500.0,0.00024657,2]
[316549285,1709536235330,-501.33540934,0.00024657,2]
[316549287,1709536235341,-500.0,0.00024657,2]
[316549289,1709536235351,-506.15863006,0.00024657,2]
[316549291,1709536235361,-502.01825289,0.00024657,2]
[316549293,1709536235372,-267.05937847,0.00024657,2]
[316549295,1709536235382,-500.0,0.00024657,2]
[316549297,1709536235392,-503.18455932,0.00024657,2]
[316549299,1709536235401,-500.0,0.00024657,2]
[316549302,1709536235411,-500.0,0.00024657,2]
[316549303,1709536235421,-500.0,0.00024657,2]
[316549306,1709536235431,-300.90386358,0.00024657,2]
[316549307,1709536235440,-502.16052335,0.00024657,2]
[316549309,1709536235453,-500.0,0.00024657,2]
[316549311,1709536235464,-500.0,0.00024657,2]
[316549313,1709536235473,-500.0,0.00024657,2]
[316549316,1709536235483,-408.83291015,0.00024657,2]
[316549317,1709536235493,-500.0,0.00024657,2]
[316549319,1709536235503,-500.0,0.00024657,2]
[316549321,1709536235513,-500.3496852,0.00024657,2]
[316549334,1709536235619,-500.0,0.00024657,2]
[316549336,1709536235632,-500.0,0.00024657,2]
[316549338,1709536235642,-500.0,0.00024657,2]
[316549340,1709536235653,-500.0,0.00024657,2]
[316549342,1709536235662,-501.55616831,0.00024657,2]
[316549343,1709536235672,-500.0,0.00024657,2]
[316549345,1709536235682,-500.0,0.00024657,2]
[316549347,1709536235692,-500.0,0.00024657,2]
[316549348,1709536235706,-500.0,0.00024657,2]
[316549350,1709536235717,-501.98163202,0.00024657,2]
[316549352,1709536235727,-632.78900236,0.00024657,2]
[316549353,1709536235738,-500.0,0.00024657,2]
[316549355,1709536235749,-503.7033325,0.00024657,2]
[316549357,1709536235760,-500.0,0.00024657,2]
[316549358,1709536235770,-500.0,0.00024657,2]
[316549360,1709536235781,-500.0,0.00024657,2]
[316549362,1709536235791,-243.43825268,0.00024657,2]
[316549363,1709536235801,-500.0,0.00024657,2]
[316549365,1709536235813,-500.98123375,0.00024657,2]
[316549367,1709536235823,-500.0,0.00024657,2]
[316549368,1709536235832,-514.7,0.00024657,2]
[316549369,1709536235842,-501.12003736,0.00024657,2]
[316549370,1709536235851,-500.0,0.00024657,2]
[316549371,1709536235861,-501.02693091,0.00024657,2]
[316549373,1709536235870,-500.0,0.00024657,2]
[316549375,1709536235879,-500.0,0.00024657,2]
[316549377,1709536235888,-500.0,0.00024657,2]
[316549378,1709536235898,-500.0,0.00024657,2]
[316549379,1709536235908,-500.0,0.00024657,2]
[316549380,1709536235919,-500.0,0.00024657,2]
[316549381,1709536235929,-500.0,0.00024657,2]
[316549382,1709536235939,-500.0,0.00024657,2]
[316549384,1709536235953,-500.0,0.00024657,2]
[316549385,1709536235964,-228.47585395,0.00024657,2]
[316549387,1709536235974,-501.06048203,0.00024657,2]
[316549388,1709536235984,-1641.33,0.00024657,2]
[316549389,1709536235994,-500.0,0.00024657,2]
[316549390,1709536236004,-500.0,0.00024657,2]
[316549391,1709536236014,-500.0,0.00024657,2]
[316549392,1709536236023,-500.0,0.00024657,2]
[316549393,1709536236032,-500.0,0.00024657,2]
[316549394,1709536236041,-500.0,0.00024657,2]
[316549395,1709536236052,-500.0,0.00024657,2]
[316549396,1709536236061,-500.0,0.00024657,2]
[316549397,1709536236071,-500.0,0.00024657,2]
[316549398,1709536236081,-500.0,0.00024657,2]
[316549399,1709536236091,-565.99174624,0.00024657,2]
[316549400,1709536236101,-500.0,0.00024657,2]
[316549401,1709536236111,-155.00155002,0.00024657,2]
[316549402,1709536236121,-500.0,0.00024657,2]
[316549403,1709536236132,-500.0,0.00024657,2]
[316549404,1709536236142,-500.0,0.00024657,2]
[316549405,1709536236151,-500.0,0.00024657,2]
[316549406,1709536236162,-500.0,0.00024657,2]
[316549407,1709536236172,-500.0,0.00024657,2]
[316549408,1709536236182,-500.0,0.00024657,2]
[316549409,1709536236194,-500.0,0.00024657,2]
[316549410,1709536236206,-500.0,0.00024657,2]
[316549411,1709536236215,-500.0,0.00024657,2]
[316549412,1709536236225,-500.0,0.00024657,2]
[316549413,1709536236234,-500.0,0.00024657,2]
[316549414,1709536236244,-500.0,0.00024657,2]
[316549415,1709536236254,-500.0,0.00024657,2]
[316549416,1709536236266,-500.0,0.00024657,2]
[316549417,1709536236276,-500.0,0.00024657,2]
[316549418,1709536236286,-500.0,0.00024657,2]
[316549419,1709536236296,-500.0,0.00024657,2]
[316549420,1709536236307,-586.44672505,0.00024657,2]
[316549421,1709536236317,-500.0,0.00024657,2]
[316549422,1709536236327,-500.0,0.00024657,2]
[316549423,1709536236337,-631.40814265,0.00024657,2]
[316549424,1709536236346,-410.44401344,0.00024657,2]
[316549425,1709536236356,-151.245199,0.00024657,2]
[316549426,1709536236366,-500.0,0.00024657,2]
[316549427,1709536236376,-500.0,0.00024657,2]
[316549428,1709536236386,-505.84601316,0.00024657,2]
[316549429,1709536236396,-504.03388007,0.00024657,2]
[316549430,1709536236407,-500.0,0.00024657,2]
[316549431,1709536236416,-500.0,0.00024657,2]
[316549432,1709536236426,-358.76274198,0.00024657,2]
[316549433,1709536236435,-500.0,0.00024657,2]
[316549434,1709536236447,-500.0,0.00024657,2]
[316549435,1709536236457,-500.0,0.00024657,2]
[316549436,1709536236467,-500.0,0.00024657,2]
[316549437,1709536236477,-500.0,0.00024657,2]
[316549438,1709536236487,-500.0,0.00024657,2]
[316549439,1709536236498,-500.0,0.00024657,2]
[316549440,1709536236507,-763.26,0.00024657,2]
[316549441,1709536236517,-1000.0,0.00024673,2]
[316549442,1709536236527,-713.38,0.00024676,2]
[316549443,1709536236535,-151.0,0.00024677,2]
[316549444,1709536236544,-1000.0,0.00024682,2]
[316549445,1709536236554,-151.0,0.00024686,2]
[316549446,1709536236563,-7972.54526256,0.00024687,7]
[316549447,1709536236573,-1000.0,0.0002471,2]
[316549448,1709536236582,-150.99441495,0.00024725,2]
[316549449,1709536236591,-300.22111447,0.00024728,2]
[316549450,1709536236600,-590.71999684,0.0002473,2]
[316549451,1709536236610,-150.99441493,0.00024741,2]
[316549452,1709536236620,-500.0,0.00024749,2]
[316549453,1709536236629,-500.0,0.00024749,2]
[316549454,1709536236639,-500.0,0.00024749,2]
[316549455,1709536236649,-500.0,0.00024749,2]
[316549456,1709536236658,-500.0,0.00024749,2]
[316549457,1709536236668,-500.0,0.00024749,2]
[316549458,1709536236678,-500.0,0.00024749,2]
[316549459,1709536236687,-500.0,0.00024749,2]
[316549460,1709536236699,-504.01474266,0.00024749,2]
[316549461,1709536236709,-500.0,0.00024749,2]
[316549462,1709536236719,-500.0,0.00024749,2]
[316549463,1709536236730,-4545.9595886,0.0002475,2]
[316549464,1709536236739,-151.677773,0.0002475,2]
[316549465,1709536236748,-151.0,0.0002475,2]
[316549466,1709536236758,-150.99441493,0.00024756,2]
[316549467,1709536236767,-1000.0,0.00024759,2]
[316549468,1709536236777,-500.0,0.00024768,2]
[316549469,1709536236787,-500.0,0.00024768,2]
[316549470,1709536236796,-501.33955276,0.00024769,2]
[316549471,1709536236810,-500.0,0.00024769,2]
[316549472,1709536236820,-500.0,0.00024769,2]
[316549473,1709536236830,-502.0914706,0.00024769,2]
[316549474,1709536236839,-227.19034493,0.00024769,2]
[316549475,1709536236848,-500.0,0.00024769,2]
[316549476,1709536236857,-500.0,0.00024769,2]
[316549477,1709536236867,-500.0,0.00024769,2]
[316549478,1709536236876,-538.52619971,0.00024769,2]
[316549479,1709536236886,-501.6930106,0.00024769,2]
[316549480,1709536236896,-503.47396169,0.00024769,2]
[316549481,1709536236905,-506.38795887,0.00024769,2]
[316549482,1709536236914,-500.0,0.00024769,2]
[316549483,1709536236923,-503.84544124,0.00024769,2]
[316549484,1709536236932,-500.0,0.00024769,2]
[316549485,1709536236942,-500.0,0.00024769,2]
[316549486,1709536236952,-500.0,0.00024769,2]
[316549487,1709536236961,-501.84311006,0.00024769,2]
[316549488,1709536236971,-487.69821102,0.00024769,2]
[316549489,1709536236980,-500.0,0.00024769,2]
[316549490,1709536236989,-500.0,0.00024769,2]
[316549491,1709536236998,-500.0,0.00024769,2]
[316549492,1709536237007,-500.0,0.00024769,2]
[316549493,1709536237017,-514.7,0.00024769,2]
[316549494,1709536237026,-500.0,0.00024769,2]
[316549495,1709536237036,-500.0,0.00024769,2]
[316549496,1709536237045,-500.0,0.00024769,2]
[316549497,1709536237054,-500.0,0.00024769,2]
[316549498,1709536237064,-500.0,0.00024769,2]
[316549499,1709536237073,-500.0,0.00024769,2]
[316549500,1709536237082,-500.0,0.00024769,2]
[316549501,1709536237092,-500.0,0.00024769,2]
[316549502,1709536237101,-1641.33,0.00024769,2]
[316549503,1709536237110,-505.91265656,0.00024769,2]
[316549504,1709536237119,-500.0,0.00024769,2]
[316549505,1709536237128,-500.0,0.00024769,2]
[316549506,1709536237137,-414.10438581,0.00024769,2]
[316549507,1709536237147,-500.0,0.00024769,2]
[316549508,1709536237156,-500.0,0.00024769,2]
[316549509,1709536237165,-501.59725895,0.00024769,2]
[316549510,1709536237174,-500.0,0.00024769,2]
[316549511,1709536237184,-500.0,0.00024769,2]
[316549512,1709536237193,-198.26522403,0.00024769,2]
[316549513,1709536237202,-500.0,0.00024769,2]
[316549514,1709536237211,-500.0,0.00024769,2]
[316549515,1709536237221,-2776.65,0.00024769,2]
[316549516,1709536237230,-500.0,0.00024769,2]
[316549517,1709536237240,-500.0,0.00024769,2]
[316549518,1709536237249,-500.0,0.00024769,2]
[316549519,1709536237259,-500.0,0.00024769,2]
[316549520,1709536237269,-500.0,0.00024769,2]
[316549521,1709536237278,-500.0,0.00024769,2]
[316549522,1709536237288,-500.0,0.00024769,2]
[316549523,1709536237297,-500.0,0.00024769,2]
[316549524,1709536237306,-500.0,0.00024769,2]
[316549525,1709536237315,-508.88840871,0.00024769,2]
[316549526,1709536237324,-500.0,0.00024769,2]
[316549527,1709536237334,-500.0,0.00024769,2]
[316549528,1709536237342,-503.51824469,0.00024769,2]
[316549529,1709536237352,-500.0,0.00024769,2]
[316549530,1709536237361,-500.0,0.00024769,2]
[316549531,1709536237370,-500.0,0.00024769,2]
[316549532,1709536237379,-763.26,0.00024769,2]
[316549533,1709536237388,-500.0,0.0002477,2]
[316549534,1709536237397,-500.27583015,0.0002477,2]
[316549535,1709536237406,-500.0,0.0002477,2]
[316549536,1709536237415,-500.0,0.0002477,2]
[316549537,1709536237424,-500.0,0.0002477,2]
[316549538,1709536237433,-211.14111785,0.0002477,2]
[316549539,1709536237442,-177.5335,0.0002477,2]
[316549540,1709536237453,-150.99441493,0.00024772,2]
[316549542,1709536237462,-500.0,0.00024785,2]
[316549543,1709536237471,-500.0,0.00024785,2]
[316549545,1709536237481,-500.0,0.00024785,2]
[316549546,1709536237490,-500.0,0.00024785,2]
[316549547,1709536237499,-500.0,0.00024785,2]
[316549548,1709536237508,-500.0,0.00024785,2]
[316549549,1709536237518,-500.0,0.00024785,2]
[316549550,1709536237527,-622.12194519,0.00024785,2]
[316549552,1709536237537,-150.99441493,0.00024787,2]
[316549553,1709536237546,-2528.5426004,0.00024787,2]
[316549554,1709536237555,-1000.0,0.00024797,2]
[316549556,1709536237564,-1000.0,0.00024825,2]
[316549557,1709536237574,-1000.0,0.0002484,2]
[316549558,1709536237584,-500.0,0.00024866,2]
[316549559,1709536237594,-500.0,0.00024866,2]
[316549560,1709536237604,-500.0,0.00024867,2]
[316549561,1709536237614,-500.0,0.00024867,2]
[316549562,1709536237624,-500.0,0.00024867,2]
[316549563,1709536237634,-500.0,0.00024867,2]
[316549564,1709536237643,-500.0,0.00024867,2]
[316549566,1709536237653,-500.0,0.00024867,2]
[316549568,1709536237662,-500.0,0.00024867,2]
[316549569,1709536237672,-503.38680877,0.00024867,2]
[316549571,1709536237681,-500.0,0.00024867,2]
[316549573,1709536237690,-500.0,0.00024867,2]
[316549575,1709536237700,-500.0,0.00024867,2]
[316549576,1709536237714,-500.0,0.00024867,2]
[316549577,1709536237723,-514.7,0.00024867,2]
[316549578,1709536237734,-505.23421377,0.00024867,2]
[316549579,1709536237743,-347.6967008,0.00024867,2]
[316549580,1709536237754,-713.38,0.00024867,2]
[316549581,1709536237763,-500.0,0.00024867,2]
[316549582,1709536237773,-500.0,0.00024867,2]
[316549583,1709536237782,-500.0,0.00024867,2]
[316549584,1709536237791,-500.0,0.00024867,2]
[316549585,1709536237800,-500.0,0.00024867,2]
[316549587,1709536237810,-1641.33,0.00024867,2]
[316549589,1709536237819,-500.0,0.00024867,2]
[316549591,1709536237828,-500.0,0.00024867,2]
[316549593,1709536237838,-500.0,0.00024867,2]
[316549595,1709536237847,-500.0,0.00024867,2]
[316549597,1709536237856,-500.0,0.00024867,2]
[316549599,1709536237864,-500.0,0.00024867,2]
[316549601,1709536237874,-500.0,0.00024867,2]
[316549603,1709536237883,-500.0,0.00024867,2]
[316549605,1709536237892,-500.0,0.00024867,2]
[316549607,1709536237901,-500.0,0.00024867,2]
[316549609,1709536237910,-500.0,0.00024867,2]
[316549611,1709536237919,-500.0,0.00024867,2]
[316549613,1709536237929,-500.0,0.00024867,2]
[316549615,1709536237938,-500.0,0.00024867,2]
[316549617,1709536237949,-500.0,0.00024867,2]
[316549619,1709536237959,-500.0,0.00024867,2]
[316549621,1709536237968,-500.0,0.00024867,2]
[316549631,1709536238054,-509.59248971,0.00024867,2]
[316549633,1709536238063,-400.0,0.00024867,2]
[316549635,1709536238072,-500.0,0.00024867,2]
[316549637,1709536238082,-763.26,0.00024867,2]
[316549639,1709536238091,-160.52114975,0.00024867,2]
[316549641,1709536238101,-312.60385265,0.00024868,2]
[316549643,1709536238110,-500.0,0.00024868,2]
[316549645,1709536238119,-500.0,0.00024868,2]
[316549647,1709536238129,-500.0,0.00024868,2]
[316549649,1709536238138,-500.0,0.00024868,2]
[316549651,1709536238146,-377.33152865,0.00024868,2]
[316549653,1709536238156,-500.0,0.00024868,2]
[316549655,1709536238164,-500.0,0.00024868,2]
[316549657,1709536238173,-500.0,0.00024868,2]
[316549659,1709536238183,-2776.65,0.00024868,2]
[316549661,1709536238192,-500.0,0.00024868,2]
[316549663,1709536238204,-500.0,0.00024868,2]
[316549665,1709536238213,-500.0,0.00024868,2]
[316549667,1709536238222,-550.57713202,0.00024868,2]
[316549669,1709536238232,-500.0,0.00024868,2]
[316549671,1709536238242,-500.0,0.00024868,2]
[316549673,1709536238251,-500.0,0.00024868,2]
[316549675,1709536238261,-500.0,0.00024868,2]
[316549677,1709536238270,-500.0,0.00024868,2]
[316549679,1709536238281,-707.36930309,0.00024869,2]
[316549681,1709536238290,-263.33593607,0.00024869,2]
[316549683,1709536238300,-157.1486779,0.00024869,2]
[316549685,1709536238311,-327.2251864,0.00024869,2]
[316549687,1709536238321,-238.50130044,0.00024869,2]
[316549689,1709536238331,-540.29486664,0.00024869,2]
[316549691,1709536238340,-201.01292019,0.00024869,2]
[316549693,1709536238350,-180.85606516,0.00024869,2]
[316549695,1709536238360,-214.57851131,0.00024869,2]
[316549697,1709536238370,-614.23121233,0.00024869,2]
[316549699,1709536238379,-4745.21119824,0.00024869,2]
[316549701,1709536238388,-212.49403967,0.00024869,2]
[316549703,1709536238398,-500.0,0.00024869,2]
[316549705,1709536238407,-500.0,0.00024869,2]
[316549707,1709536238416,-500.0,0.00024869,2]
[316549709,1709536238426,-507.59555293,0.00024869,2]
[316549711,1709536238435,-500.0,0.00024869,2]
[316549713,1709536238446,-500.0,0.00024869,2]
[316549715,1709536238455,-408.65926734,0.00024869,2]
[316549717,1709536238466,-500.0,0.00024869,2]
[316549719,1709536238475,-500.0,0.00024869,2]
[316549721,1709536238487,-298.79592124,0.00024869,2]
[316549723,1709536238496,-500.0,0.00024869,2]
[316549725,1709536238505,-184.07188802,0.00024869,2]
[316549727,1709536238514,-499.31471558,0.00024869,2]
[316549729,1709536238523,-500.0,0.00024869,2]
[316549731,1709536238532,-500.0,0.00024869,2]
[316549733,1709536238541,-500.0,0.00024869,2]
[316549735,1709536238550,-500.0,0.00024869,2]
[316549737,1709536238559,-219.86488834,0.00024869,2]
[316549739,1709536238568,-500.0,0.00024869,2]
[316549741,1709536238577,-500.0,0.00024869,2]
[316549743,1709536238587,-500.0,0.00024869,2]
[316549745,1709536238595,-500.0,0.00024869,2]
[316549747,1709536238604,-500.0,0.00024869,2]
[316549749,1709536238613,-500.0,0.00024869,2]
[316549751,1709536238622,-500.0,0.00024869,2]
[316549753,1709536238630,-500.0,0.00024869,2]
[316549755,1709536238639,-283.2007529,0.00024869,2]
[316549757,1709536238648,-575.91169504,0.00024869,2]
[316549759,1709536238657,-500.0,0.00024869,2]
[316549761,1709536238666,-500.0,0.00024869,2]
[316549763,1709536238675,-500.0,0.00024869,2]
[316549765,1709536238683,-190.70852058,0.00024869,2]
[316549767,1709536238692,-500.0,0.00024869,2]
[316549769,1709536238704,-188.84097037,0.00024869,2]
[316549771,1709536238715,-500.0,0.00024869,2]
[316549773,1709536238724,-500.0,0.00024869,2]
[316549775,1709536238733,-500.0,0.00024869,2]
[316549777,1709536238742,-500.0,0.00024869,2]
[316549779,1709536238753,-500.0,0.00024869,2]
[316549781,1709536238762,-500.0,0.00024869,2]
[316549783,1709536238771,-500.0,0.00024869,2]
[316549785,1709536238780,-500.0,0.00024869,2]
[316549787,1709536238790,-500.0,0.00024869,2]
[316549789,1709536238800,-500.0,0.00024869,2]
[316549791,1709536238810,-500.0,0.00024869,2]
[316549793,1709536238819,-500.0,0.00024869,2]
[316549795,1709536238827,-500.0,0.00024869,2]
[316549797,1709536238837,-500.0,0.00024869,2]
[316549799,1709536238846,-500.0,0.00024869,2]
[316549801,1709536238854,-500.0,0.00024869,2]
[316549803,1709536238863,-500.0,0.00024869,2]
[316549805,1709536238872,-500.0,0.00024869,2]
[316549807,1709536238881,-366.11,0.00024869,2]
[316549809,1709536238890,-500.0,0.00024869,2]
[316549811,1709536238900,-500.0,0.00024869,2]
[316549813,1709536238909,-500.0,0.00024869,2]
[316549815,1709536238918,-500.0,0.00024869,2]
[316549817,1709536238927,-500.0,0.00024869,2]
[316549819,1709536238936,-500.0,0.00024869,2]
[316549821,1709536238947,-500.0,0.00024869,2]
[316549822,1709536238956,-500.0,0.00024869,2]
[316549824,1709536238965,-500.0,0.00024869,2]
[316549826,1709536238975,-500.0,0.00024869,2]
[316549828,1709536238984,-500.0,0.00024869,2]
[316549830,1709536238993,-500.0,0.00024869,2]
[316549832,1709536239002,-504.99743763,0.00024869,2]
[316549834,1709536239011,-500.0,0.00024869,2]
[316549836,1709536239020,-514.7,0.00024869,2]
[316549838,1709536239030,-514.7,0.00024869,2]
[316549840,1709536239039,-514.7,0.00024869,2]
[316549842,1709536239048,-514.7,0.00024869,2]
[316549844,1709536239057,-514.7,0.00024869,2]
[316549846,1709536239066,-514.7,0.00024869,2]
[316549848,1709536239075,-500.0,0.00024869,2]
[316549850,1709536239084,-500.0,0.00024869,2]
[316549852,1709536239093,-500.0,0.00024869,2]
[316549854,1709536239102,-500.0,0.00024869,2]
[316549856,1709536239111,-500.0,0.00024869,2]
[316549858,1709536239120,-580.97935606,0.00024869,2]
[316549860,1709536239129,-1000.0,0.00024869,2]
[316549862,1709536239138,-713.38,0.00024869,2]